fUSD/lending_fUSD_20240802
["ID","MTS","AMOUNT","RATE_DAILY","PERIOD"]
[333930394,1722632950035,-874.01423561,9.965e-05,2]
[333930395,1722632983885,150.0,8.495e-05,2]
[333930396,1722632983908,65.65287238,8.495e-05,2]
[333930397,1722633001266,150.0,8.495e-05,2]
[333930398,1722633001289,150.0,8.495e-05,2]
[333930399,1722633001312,149.14,8.495e-05,2]
[333930400,1722633006729,150.0,8.495e-05,2]
[333930401,1722633006751,50.88294081,8.495e-05,2]
[333930402,1722633008542,99.11705919,8.495e-05,2]
[333930403,1722633008564,56.38828027,8.495e-05,2]
[333930404,1722633028569,150.0,8.495e-05,2]
[333930405,1722633028590,77.58642964,8.495e-05,2]
[333930420,1722633031712,-44.71576439,9.965e-05,2]
[333930422,1722633031723,-367.87917961,0.00010527,2]
[333930424,1722633031732,-1240.06156823,0.00010532,2]
[333930425,1722633031745,-323.745,0.00010532,2]
[333930426,1722633031758,-387.02289021,0.00010532,2]
[333930428,1722633032035,-21949.17054156,0.00010532,2]
[333930430,1722633032046,-367.87917959,0.00010593,2]
[333930432,1722633032055,-250.0,0.00010627,2]
[333930433,1722633032065,-367.87917959,0.00010659,2]
[333930434,1722633032075,-157.27011438,0.00010759,2]
[333930435,1722633032085,-150.0,0.00010874,2]
[333930436,1722633032094,-156.61,0.00010959,2]
[333930437,1722633032103,-783.1,0.00010959,2]
[333930438,1722633032116,-250.0,0.00010959,2]
[333930439,1722633032125,-300.0,0.00010989,2]
[333930440,1722633032135,-500.0,0.00010989,3]
[333930441,1722633032144,-18296.65428291,0.0001099,2]
[333930442,1722633032176,-1064.25258234,0.0001099,2]
[333930443,1722633032188,-3410.4,0.0001099,2]
[333930444,1722633032199,-2480.12615262,0.0001099,2]
[333930445,1722633032214,-5405.95989758,0.0001099,2]
[333930446,1722633032324,-704.5706,0.0001099,2]
[333930447,1722633032436,-6004.92195362,0.0001099,2]
[333930449,1722633037784,-340.68338463,0.00010297,4]
[333930450,1722633037794,-1215.2107401,0.0001099,2]
[333930451,1722633037804,-500.0,0.00011,2]
[333930452,1722633037814,-911.09,0.00011,2]
[333930453,1722633037824,-499.99,0.00011,2]
[333930454,1722633037834,-1666.81,0.00011,2]
[333930455,1722633037843,-157.27011434,0.00011007,2]
[333930456,1722633037853,-2000.0,0.00011092,2]
[333930457,1722633037863,-150.0,0.00011199,2]
[333930458,1722633037872,-600.0,0.000112,4]
[333930459,1722633037882,-200.0,0.000112,4]
[333930460,1722633037891,-157.27011434,0.00011255,2]
[333930461,1722633037901,-1300.0,0.000113,4]
[333930462,1722633037910,-500.0,0.000113,4]
[333930463,1722633037920,-304.55,0.00011305,2]
[333930464,1722633037930,-2000.0,0.000114,4]
[333930465,1722633037940,-800.0,0.000114,4]
[333930466,1722633037949,-2700.0,0.000115,4]
[333930467,1722633037959,-1000.0,0.000115,4]
[333930468,1722633037968,-157.27011434,0.00011504,2]
[333930469,1722633037977,-1000.0,0.0001159,2]
[333930470,1722633037987,-3400.0,0.000116,4]
[333930471,1722633037999,-1300.0,0.000116,4]
[333930472,1722633038009,-176.17,0.00011691,2]
[333930473,1722633038018,-596.45553227,0.000117,4]
[333930624,1722633039617,-3.54446773,0.000117,4]
[333930627,1722633039626,-200.0,0.000117,4]
[333930629,1722633039636,-157.27011434,0.00011752,2]
[333930631,1722633039647,-600.0,0.000118,4]
[333930633,1722633039656,-408.6982531,0.000119,2]
[333930635,1722633039666,-26.82814354,0.000119,4]
[333930638,1722633039678,-402.92720618,0.000119,4]
[333930640,1722633039690,-170.24465028,0.000119,4]
[333930643,1722633039700,-803.19034972,0.000119,2]
[333930646,1722633039712,-1297.34844736,0.000119,2]
[333930648,1722633039724,-1303.98595642,0.000119,2]
[333930650,1722633039734,-3404.52475347,0.00011949,2]
[333930652,1722633039744,-1337.0296412,0.00011979,2]
[333930654,1722633039757,-1567.46174938,0.00011979,2]
[333930738,1722633040524,-242.69113318,0.00010297,2]
[333930740,1722633040533,-200.0,0.000118,4]
[333930742,1722633040544,-24594.47273462,0.00011979,2]
[333930746,1722633040569,-5775.0358748,0.00011979,2]
[333930748,1722633040579,-3404.52475347,0.00011998,2]
[333930750,1722633040589,-550.0,0.00012,2]
[333930752,1722633040599,-157.27011434,0.00012,2]
[333930754,1722633040608,-20357.88375749,0.00012,2]
[333930757,1722633040627,-38386.61757168,0.00012,2]
[333930759,1722633040639,-504.152,0.00012,2]
[333930764,1722633040683,-1557.01379791,0.00012,2]
[333930766,1722633040695,-460.40499999,0.00012,2]
[333930769,1722633040707,-624.94432,0.00012,2]
[333930975,1722633042826,-56.30247968,0.000119,4]
[333930976,1722633042859,-143.69752032,0.000119,4]
[333930977,1722633042869,-94885.98355293,0.00012,2]
[333930978,1722633042879,-944.36213939,0.00012,2]
[333930979,1722633042891,-1404.66319734,0.00012,2]
[333930980,1722633042902,-408.6982531,0.00012041,2]
[333930981,1722633042915,-3404.52475347,0.00012047,2]
[333930982,1722633042925,-420.0,0.00012076,2]
[333930984,1722633042937,-446.78396168,0.00012082,2]
[333930986,1722633042947,-155.35,0.0001209,2]
[333930988,1722633042956,-155.35,0.0001209,2]
[333930990,1722633042966,-155.35,0.0001209,2]
[333930992,1722633042976,-155.35,0.0001209,2]
[333930994,1722633042985,-155.35,0.0001209,2]
[333930997,1722633042998,-3404.52475347,0.00012096,2]
[333930999,1722633043008,-37547.33604024,0.000121,120]
[333931001,1722633043020,-228487.95895451,0.000121,120]
[333931005,1722633043050,-366.9139199,0.000121,120]
[333931270,1722633045918,-2606.00426515,0.000121,120]
[333931280,1722633045971,-614.62361788,0.000121,120]
[333931283,1722633045983,-256.40973,0.000121,120]
[333931286,1722633045995,-68391.50999998,0.000121,120]
[333931298,1722633046100,-1347.9,0.000121,120]
[333931311,1722633046223,-340.19,0.000121,120]
[333931313,1722633046235,-129425.99999998,0.000121,120]
[333931648,1722633143649,-886.49,9.865e-05,2]
[333931649,1722633144907,-836.05625185,9.865e-05,2]
[333931650,1722633145739,-741.30609592,9.865e-05,2]
[333931651,1722633147501,-608.48463902,9.865e-05,2]
[333931652,1722633148170,-278.00536098,9.865e-05,2]
[333931653,1722633148810,-752.86271819,9.865e-05,2]
[333931654,1722633149595,-836.07106866,9.865e-05,2]
[333931655,1722633150155,-23.24356538,9.865e-05,2]
[333931656,1722633156232,-50000.0,0.000121,120]
[333931657,1722633162543,-50000.0,0.000121,120]
[333931658,1722633167004,-50000.0,0.000121,120]
[333931659,1722633201473,-836.07893632,9.58e-05,2]
[333931660,1722633201636,-50000.0,0.000121,120]
[333931661,1722633202299,-75.56106368,9.58e-05,2]
[333931662,1722633203570,-50000.0,0.000121,120]
[333931664,1722633212254,-50000.0,0.000121,120]
[333931665,1722633222203,-50000.0,0.000121,120]
[333931666,1722633223941,-50000.0,0.000121,120]
[333931667,1722633256059,-50000.0,0.000121,120]
[333931668,1722633259579,-50000.0,0.000121,120]
[333931669,1722633262880,-50000.0,0.000121,120]
[333931670,1722633264385,-50000.0,0.000121,120]
[333931671,1722633267950,-50000.0,0.000121,120]
[333931672,1722633269878,-50000.0,0.000121,120]
[333931673,1722633288120,-319289.0,0.000121,120]
[333931674,1722633333628,-1100000.0,0.000121,120]
[333931675,1722633396613,-300000.0,0.000121,120]
[333931677,1722633534421,-100000.0,0.000121,120]
[333931680,1722633706713,866.05,8.497e-05,2]
[333931681,1722633713793,-200000.0,0.000121,120]
[333931683,1722633745270,150.0,8.497e-05,2]
[333931684,1722633745292,150.0,8.497e-05,2]
[333931685,1722633745315,150.0,8.497e-05,2]
[333931686,1722633745337,274.73833296,8.497e-05,2]
[333931687,1722633745367,1625.34929178,8.497e-05,2]
[333931688,1722633745396,125.33616211,8.497e-05,2]
[333931690,1722633764665,961.73385399,8.497e-05,2]
[333931691,1722633766864,150.0,8.497e-05,2]
[333931692,1722633766888,77.58642964,8.497e-05,2]
[333931693,1722633773733,1773.72390309,8.497e-05,2]
[333931694,1722633773763,462.61649471,8.497e-05,2]
[333931697,1722633852165,150.0,8.497e-05,2]
[333931698,1722633852185,77.58642964,8.497e-05,2]
[333931699,1722633865653,1097.30246461,8.497e-05,2]
[333931701,1722633920189,1098.0055232,9e-05,2]
[333931702,1722633920225,789.36378374,9e-05,2]
[333931705,1722633939302,-5000.0,0.000121,120]
[333931706,1722633940936,227.58642964,8.497e-05,2]
[333931707,1722633956284,150.0,6.94e-05,2]
[333931708,1722633956306,150.0,6.94e-05,2]
[333931709,1722633956339,195.79702961,6.94e-05,2]
[333931710,1722633956369,777.1787127,6.94e-05,2]
[333931711,1722633956398,2778.04720371,6.94e-05,2]
[333931712,1722633956431,2262.4617928,6.94e-05,2]
[333931713,1722633956463,1602.28486647,6.94e-05,2]
[333931714,1722633956492,3083.24541795,6.94e-05,2]
[333931715,1722633956521,2928.20621394,6.94e-05,2]
[333931716,1722633956550,9579.02240454,6.94e-05,2]
[333931720,1722634028881,227.58642964,6.94e-05,2]
[333931722,1722634032178,150.0,6.94e-05,2]
[333931723,1722634032204,150.0,6.94e-05,2]
[333931724,1722634032227,150.0,6.94e-05,2]
[333931725,1722634032249,150.0,6.94e-05,2]
[333931726,1722634032272,150.0,6.94e-05,2]
[333931727,1722634032295,109.3225017,6.94e-05,2]
[333931741,1722634073862,40.6774983,8.412e-05,2]
[333931742,1722634073884,150.0,8.412e-05,2]
[333931743,1722634073907,142.0549017,8.412e-05,2]
[333931744,1722634075381,7.9450983,8.412e-05,2]
[333931745,1722634075406,150.0,8.412e-05,2]
[333931746,1722634075428,69.64133134,8.412e-05,2]
[333931755,1722634171885,150.0,8.412e-05,2]
[333931756,1722634171908,77.58642964,8.412e-05,2]
[333931758,1722634224485,822.74,8.219e-05,2]
[333931800,1722634232437,-296.98,9.721e-05,2]
[333931801,1722634232448,-300.0,9.858e-05,2]
[333931802,1722634232459,-150.0,9.858e-05,2]
[333931803,1722634232470,-219.0,9.858e-05,2]
[333931804,1722634232481,-466.52311548,9.858e-05,2]
[333931805,1722634232492,-44.28406701,9.859e-05,2]
[333931806,1722634232507,-310.62,9.859e-05,2]
[333931807,1722634232538,-777.82664874,9.859e-05,2]
[333931808,1722634232552,-124121.99999999,9.859e-05,2]
[333931809,1722634232566,-676.29250496,9.859e-05,2]
[333931810,1722634232589,-5176.59454602,9.859e-05,2]
[333931811,1722634232602,-2038.29,9.859e-05,2]
[333931813,1722634232646,-283.8100001,9.859e-05,2]
[333931816,1722634232658,-790.15908962,9.859e-05,2]
[333931817,1722634232670,-28149.06066656,9.859e-05,2]
[333931818,1722634232680,-15051.67229343,9.86e-05,2]
[333931819,1722634232701,-3456.53770657,9.86e-05,2]
[333931820,1722634232711,-886.49,9.881e-05,2]
[333931821,1722634232721,-1858.05284377,0.0001,2]
[333931822,1722634232731,-14346.12061176,0.00010075,10]
[333931823,1722634232742,-496.89,0.0001008,2]
[333931824,1722634232752,-10000.0,0.00010112,2]
[333931827,1722634232762,-161.01,0.00010112,2]
[333931830,1722634232774,-250.0,0.00010163,2]
[333931832,1722634232791,-499.99,0.00010196,2]
[333931834,1722634232803,-2383.99791829,0.00010297,2]
[333931836,1722634232813,-1000.0,0.00010304,2]
[333931838,1722634232823,-2000.0,0.00010371,2]
[333931840,1722634232833,-179.02,0.00010374,2]
[333931842,1722634232843,-500.0,0.00010387,2]
[333931844,1722634232852,-822.74,0.00010459,2]
[333931846,1722634232862,-162.76,0.00010464,2]
[333931848,1722634232872,-177.72,0.00010571,2]
[333931850,1722634232881,-800.0,0.000106,3]
[333931852,1722634232891,-2354.28,0.00010621,2]
[333931854,1722634232901,-1600.0,0.000107,3]
[333931856,1722634232911,-2400.0,0.000108,3]
[333931859,1722634232922,-255.0,0.00010844,2]
[333931861,1722634232932,-940.04012856,0.00010899,2]
[333931862,1722634232941,-879.65454678,0.00010899,2]
[333931864,1722634232952,-879.65454669,0.00010899,2]
[333931867,1722634232963,-3142.45168315,0.00010899,2]
[333931869,1722634232973,-3142.45168308,0.00010899,2]
[333931871,1722634232983,-3200.0,0.000109,3]
[333931873,1722634232993,-161.49671714,0.000109,2]
[333931875,1722634233003,-296.98,0.00010936,2]
[333931877,1722634233014,-250.0,0.00010959,2]
[333931879,1722634233031,-181.0,0.00010959,2]
[333931881,1722634233041,-412.606,0.0001099,2]
[333931883,1722634233053,-59132.73006639,0.00010999,2]
[333931884,1722634233083,-856.26166783,0.00010999,2]
[333931885,1722634233115,-307.36198922,0.00010999,2]
[333931886,1722634233324,-43523.71812539,0.00010999,2]
[333931887,1722634233335,-206087.95898968,0.00011,2]
[333931888,1722634233347,-4349.89865,0.00011,2]
[333931889,1722634233364,-929.305,0.00011,2]
[333931891,1722634233376,-1033.09125361,0.00011,2]
[333931895,1722634237896,-153.81838547,0.00010997,2]
[333931896,1722634237906,-12249.98161452,0.00011,2]
[333931898,1722634238862,-1254.9956438,0.00011,2]
[333931900,1722634238885,-21389.60134416,0.00011,2]
[333931904,1722634238899,-1507.57772365,0.00011,2]
[333931906,1722634238912,-50448.83835652,0.00011,2]
[333931910,1722634238929,-1659.66309036,0.00011,2]
[333931912,1722634238947,-804.069,0.00011,2]
[333931914,1722634238961,-872.70324396,0.00011,2]
[333931916,1722634238975,-282.29427162,0.00011,2]
[333931918,1722634238988,-775.81231454,0.00011,2]
[333931920,1722634239002,-19125.89286725,0.00011,2]
[333931923,1722634239016,-12126.67632884,0.00011,2]
[333931925,1722634239037,-261.8304316,0.00011,2]
[333931927,1722634239051,-2486.18336635,0.00011,2]
[333931929,1722634239065,-30687.70725279,0.00011,2]
[333931932,1722634239078,-20046.88647575,0.00011,2]
[333931934,1722634239092,-703.20536157,0.00011,2]
[333931936,1722634239106,-39831.78697811,0.00011,2]
[333931939,1722634239120,-622.21983407,0.00011,2]
[333931941,1722634239133,-575.94544963,0.00011,2]
[333931944,1722634239150,-480.22133686,0.00011,2]
[333931946,1722634239164,-8929.68782342,0.00011,2]
[333931948,1722634239178,-3080.51244,0.00011,2]
[333931951,1722634239191,-329.74471,0.00011,2]
[333931953,1722634239205,-3692.34000001,0.00011,2]
[333931955,1722634239217,-310.405,0.00011,2]
[333931957,1722634239230,-31455.11324862,0.00011,2]
[333931959,1722634239244,-1517.94477704,0.00011,2]
[333931962,1722634239258,-680.55060547,0.00011,2]
[333931964,1722634239270,-685.2364623,0.00011,2]
[333931966,1722634239293,-9998.61859589,0.00011,2]
[333931969,1722634239305,-6686.35371582,0.00011,2]
[333931992,1722634239650,-62200.0,0.00011,2]
[333931994,1722634239662,-115828.81226,0.00011,2]
[333931996,1722634239674,-1042.82955653,0.00011,2]
[333931999,1722634239686,-1510.3000001,0.00011,2]
[333932001,1722634239697,-620.65255005,0.00011,2]
[333932152,1722634241193,-2607.20000779,0.00011,2]
[333932154,1722634241205,-5275.61115751,0.00011,2]
[333932156,1722634241216,-1546.2447,0.00011,2]
[333932158,1722634241228,-22764.57162091,0.00011,2]
[333932161,1722634241244,-656.14,0.00011,2]
[333932163,1722634241256,-703.39794771,0.00011,2]
[333932165,1722634241267,-758.01963304,0.00011,2]
[333932188,1722634241478,-3861.57656349,0.00011,2]
[333932192,1722634241511,-6222.219883,0.00011,2]
[333932194,1722634241523,-265.41176012,0.00011,2]
[333932196,1722634241535,-140100.34302102,0.00011,2]
[333932198,1722634241546,-1419.00612415,0.00011,2]
[333932200,1722634241559,-92436.95999999,0.00011,2]
[333932203,1722634241572,-1600.65,0.00011,2]
[333932205,1722634241583,-690.03922118,0.00011,2]
[333932207,1722634241595,-385.66261705,0.00011,2]
[333932209,1722634241606,-1113.93944268,0.00011,2]
[333932211,1722634241617,-1040.80179994,0.00011,2]
[333932214,1722634241636,-703.90320097,0.00011,2]
[333932216,1722634241647,-752.71832399,0.00011,2]
[333932218,1722634241658,-6540.44346774,0.00011,2]
[333932221,1722634241670,-281.186742,0.00011,2]
[333932223,1722634241682,-2366.84226352,0.00011,2]
[333932226,1722634241697,-267.86455196,0.00011,2]
[333932228,1722634241709,-4086.26614854,0.00011,2]
[333932230,1722634241724,-1999.99972,0.00011,2]
[333932233,1722634241740,-9756.48499206,0.00011,2]
[333932235,1722634241752,-2121.68807362,0.00011,2]
[333932238,1722634241788,-43396.33147046,0.00011,2]
[333932239,1722634241800,-40577.96035789,0.00011,2]
[333932240,1722634241823,-4531.49864661,0.00011,2]
[333932241,1722634241835,-3118.19999998,0.00011,2]
[333932242,1722634241847,-5680.49783588,0.00011,2]
[333932243,1722634241862,-505.2624392,0.00011,2]
[333932245,1722634241874,-752.06647049,0.00011,2]
[333932248,1722634241894,-149738.22393885,0.00011,2]
[333932250,1722634241905,-787.9975,0.00011,2]
[333932253,1722634241921,-299712.58638125,0.00011,2]
[333932255,1722634241932,-381544.81874949,0.00011,2]
[333932258,1722634241948,-4819.77114843,0.00011,2]
[333932260,1722634241961,-6078.17046393,0.00011,2]
[333932262,1722634241972,-8864.50863,0.00011,2]
[333932265,1722634241992,-539.06283141,0.00011,2]
[333932267,1722634242004,-377.63072068,0.00011,2]
[333932270,1722634242016,-354.30188196,0.00011,2]
[333932272,1722634242028,-284.87,0.00011,2]
[333932386,1722634242995,-227.58642964,0.00010196,2]
[333932388,1722634243005,-3256.41357036,0.00011,2]
[333932394,1722634243061,-1273.17437998,0.00011,2]
[333932396,1722634243073,-284.57122063,0.00011,2]
[333932406,1722634243159,-277.4470251,0.00011,2]
[333932419,1722634243271,-12146.20539568,0.00011,2]
[333932421,1722634243284,-448.57082707,0.00011,2]
[333932424,1722634243296,-3253.59999982,0.00011,2]
[333932434,1722634243389,-895.77908487,0.00011,2]
[333932438,1722634243416,-62253.3296,0.00011,2]
[333932440,1722634243430,-1334.91684426,0.00011,2]
[333932637,1722634245483,-3087.7847,0.00011,2]
[333932639,1722634245495,-12284.02888165,0.00011,2]
[333932642,1722634245506,-2180.37715403,0.00011,2]
[333932644,1722634245522,-397.62863933,0.00011,2]
[333932646,1722634245533,-2472.47,0.00011,2]
[333932649,1722634245545,-31029.00000004,0.00011,2]
[333932755,1722634246532,-324.42494,0.00011,2]
[333932757,1722634246544,-6519.14488,0.00011,2]
[333932759,1722634246560,-1495.63864925,0.00011,2]
[333932761,1722634246572,-644.61046,0.00011,2]
[333932764,1722634246585,-1343.41569,0.00011,2]
[333932766,1722634246597,-330.641,0.00011,2]
[333932768,1722634246611,-495.5321371,0.00011,2]
[333932774,1722634246663,-743.6,0.00011,2]
[333932777,1722634246675,-2207.1800953,0.00011,2]
[333932785,1722634246750,-1202.58208626,0.00011,2]
[333932788,1722634246762,-937.10726704,0.00011,2]
[333932803,1722634246896,-671.52651204,0.00011,2]
[333932805,1722634246908,-333.06671149,0.00011,2]
[333932824,1722634247018,-24314.7089154,0.00011,2]
[333932828,1722634247030,-1210.3094896,0.00011,2]
[333932831,1722634247042,-13842.66935508,0.00011,2]
[333933729,1722634286836,-249600.0,0.000121,120]
[333933745,1722634580930,150.0,7.88e-05,2]
[333933746,1722634580951,31.22,7.88e-05,2]
[333933747,1722634614932,227.58642964,7.88e-05,2]
[333933748,1722634617309,15.70586375,7.88e-05,2]
[333933749,1722634617337,206.19487131,7.88e-05,2]
[333933750,1722634617706,828.311537,7.88e-05,2]
[333933751,1722634621214,150.0,7.88e-05,2]
[333933752,1722634621235,150.0,7.88e-05,2]
[333933753,1722634621256,150.0,7.88e-05,2]
[333933754,1722634621278,150.0,7.88e-05,2]
[333933755,1722634621302,150.0,7.88e-05,2]
[333933756,1722634621324,150.0,7.88e-05,2]
[333933757,1722634621346,150.0,7.88e-05,2]
[333933758,1722634621368,150.0,7.88e-05,2]
[333933759,1722634621389,150.0,7.88e-05,2]
[333933760,1722634621410,150.0,7.88e-05,2]
[333933761,1722634621433,150.0,7.88e-05,2]
[333933762,1722634621455,128.4205958,7.88e-05,2]
[333933763,1722634656212,-300.0,9.551e-05,2]
[333933764,1722634672058,-227.58642964,9.551e-05,2]
[333933765,1722634672080,-349.11015423,9.705e-05,2]
[333933766,1722634672296,-349.11015423,9.705e-05,2]
[333933767,1722634672779,-403.75256396,9.705e-05,2]
[333933768,1722634673460,-778.65197262,9.705e-05,2]
[333933770,1722634731433,200.96988889,9.175e-05,2]
[333933771,1722634787935,150.0,9.175e-05,2]
[333933772,1722634787957,77.58642964,9.175e-05,2]
[333933773,1722634855430,-260.36,9.442e-05,2]
[333933774,1722634880832,-777.90532233,9.255e-05,2]
[333933775,1722634907329,830.04,8.219e-05,2]
[333933776,1722634911215,250.0,9.177e-05,2]
[333933777,1722634946928,150.0,9.177e-05,2]
[333933778,1722634947058,77.58642964,9.177e-05,2]
[333933779,1722634994313,19.44342773,9.208e-05,2]
[333933780,1722634994340,1837.51609161,9.208e-05,2]
[333933781,1722634994367,1826.19961989,9.208e-05,2]
[333933782,1722634994395,2219.12114496,9.208e-05,2]
[333933783,1722634994423,562.65426071,9.208e-05,2]
[333933784,1722634994451,2200.0917568,9.208e-05,2]
[333933785,1722634994478,2025.01694358,9.208e-05,2]
[333933786,1722634994506,3371.96088314,9.208e-05,2]
[333933787,1722634994534,2491.39929178,9.208e-05,2]
[333933788,1722635148237,1680.598312,9.093e-05,2]
[333933789,1722635235446,150.0,9.093e-05,2]
[333933790,1722635235467,77.58642964,9.093e-05,2]
[333933791,1722635237049,-407.02,9.125e-05,2]
[333933792,1722635238185,300.9271131,9.079e-05,2]
[333933793,1722635238215,477.7248599,9.079e-05,2]
[333933794,1722635238547,-209.76938948,9.125e-05,2]
[333933795,1722635249445,-176.21,9.139e-05,2]
[333933796,1722635260026,403.752564,9.093e-05,2]
[333933797,1722635260210,-283.34244205,9.181e-05,2]
[333933798,1722635260955,-202.30886682,9.181e-05,2]
[333933799,1722635320847,-3755.56,9.164e-05,2]
[333933800,1722635320879,-152.10919376,9.181e-05,2]
[333933801,1722635320918,-580.46949737,9.181e-05,2]
[333933802,1722635320946,-177.72,9.181e-05,2]
[333933803,1722635320972,-1283.94,9.186e-05,2]
[333933804,1722635321000,-1865.53969639,9.208e-05,2]
[333933805,1722635321078,-3907.66919376,9.208e-05,2]
[333933806,1722635321190,-1573.38768965,9.208e-05,2]
[333933807,1722635321217,-2334.28150411,9.208e-05,2]
[333933808,1722635321249,-3907.66919376,9.208e-05,2]
[333933809,1722635321356,-1999.84930213,9.208e-05,2]
[333933810,1722635321385,-22.09467767,9.255e-05,2]
[333933811,1722635321412,-1885.72521396,9.702e-05,2]
[333933812,1722635321545,-2190.30448604,9.702e-05,2]
[333933813,1722635321572,-154.01,9.706e-05,2]
[333933814,1722635321600,-154.01,9.714e-05,2]
[333933815,1722635321628,-154.01,9.722e-05,2]
[333933816,1722635321654,-154.01,9.73e-05,2]
[333933817,1722635321681,-154.01,9.738e-05,2]
[333933818,1722635321708,-499.99,9.738e-05,2]
[333933819,1722635321735,-150.0,9.745e-05,2]
[333933820,1722635321763,-154.01,9.746e-05,2]
[333933821,1722635321795,-143.31470772,9.746e-05,2]
[333933822,1722635321843,-1740.93802179,9.746e-05,2]
[333933829,1722635372148,-227.58642964,9.181e-05,2]
[333933830,1722635372171,-360.0,9.621e-05,2]
[333933831,1722635372194,-2254.96540836,9.746e-05,2]
[333933832,1722635401858,150.0,8.219e-05,2]
[333933833,1722635401883,150.0,8.219e-05,2]
[333933834,1722635401907,150.0,8.219e-05,2]
[333933835,1722635401938,380.35,8.219e-05,2]
[333933849,1722635433454,-250.0,9.612e-05,2]
[333933850,1722635433464,-200.0,9.636e-05,2]
[333933851,1722635433473,-350.07111468,9.746e-05,2]
[333933852,1722635433543,-11.67711507,9.746e-05,2]
[333933853,1722635433652,-5499.02363238,9.746e-05,2]
[333933854,1722635433662,-154.01,9.755e-05,2]
[333933855,1722635433672,-2720.03,9.755e-05,2]
[333933856,1722635433682,-175.31,9.889e-05,2]
[333933857,1722635433697,-300.0,9.998e-05,2]
[333933858,1722635433707,-300.0,9.998e-05,2]
[333933859,1722635433716,-3043.1413479,9.999e-05,2]
[333933860,1722635433728,-1105.08972065,9.999e-05,2]
[333933861,1722635433738,-124.99027935,0.0001,2]
[333933862,1722635433749,-27847.0306,0.0001,2]
[333933863,1722635433762,-45691.97912065,0.0001,2]
[333933864,1722635433771,-4525.2,0.0001,2]
[333933865,1722635433781,-4525.2,0.0001,2]
[333933866,1722635433790,-4525.2,0.0001,2]
[333933867,1722635433800,-4525.2,0.0001,2]
[333933868,1722635433814,-4525.2,0.0001,2]
[333933869,1722635433824,-4525.2,0.0001,2]
[333933870,1722635433834,-4525.2,0.0001,2]
[333933871,1722635433844,-4525.2,0.0001,2]
[333933872,1722635433854,-4525.2,0.0001,2]
[333933873,1722635433864,-4525.2,0.0001,2]
[333933874,1722635433874,-4525.2,0.0001,2]
[333933875,1722635433885,-4525.2,0.0001,2]
[333933876,1722635433895,-4525.2,0.0001,2]
[333933877,1722635433905,-4525.2,0.0001,2]
[333933878,1722635433915,-4525.2,0.0001,2]
[333933879,1722635433924,-4525.2,0.0001,2]
[333933881,1722635433934,-4525.2,0.0001,2]
[333933883,1722635433944,-4525.2,0.0001,2]
[333933884,1722635433953,-4525.2,0.0001,2]
[333933885,1722635433963,-246.98322774,0.0001,2]
[333933886,1722635433972,-963.3585618,0.00010075,10]
[333933887,1722635433982,-4525.2,0.00010176,2]
[333933888,1722635433991,-4525.2,0.00010176,2]
[333933889,1722635434001,-4525.2,0.00010176,2]
[333933890,1722635434012,-4525.2,0.00010186,2]
[333933891,1722635434022,-4525.2,0.00010186,2]
[333933892,1722635434031,-499.99,0.00010186,2]
[333933893,1722635434041,-4865.26923921,0.00010196,2]
[333933894,1722635434051,-203.8077333,0.00010196,2]
[333933895,1722635434061,-1038.67104206,0.00010196,2]
[333933896,1722635434071,-6662.33367191,0.00010196,2]
[333933897,1722635434080,-4525.2,0.00010212,2]
[333933898,1722635434090,-4525.2,0.0001028,2]
[333933899,1722635434100,-4525.2,0.0001028,2]
[333933900,1722635434110,-4525.2,0.0001029,2]
[333933901,1722635434120,-4525.2,0.0001029,2]
[333933902,1722635434130,-11495.0,0.000103,3]
[333933903,1722635434141,-4525.2,0.00010383,2]
[333933904,1722635434151,-186.57,0.00010403,2]
[333933905,1722635434162,-800.0,0.00010412,2]